{"text_format":"3","workbook":"xlsx","n_sheets":4,"sheets":["Algus","Kulud","Sissetulekud","Kasumiaruande kokkuvõte"],"not_rendered":{"charts":1},"read":"whole","date_system":"1900"}

{"sheet":"Algus","index":0,"n_rows":8,"n_cols":2,"rows_kept":8}
[null,"TEAVE SELLE MALLI KOHTA"]
[null,"Selle sündmuse eelarve töövihiku abil saate jälgida sündmusega seotud kulusid ja sellelt teenitud tulu."]
[null,"Täitke väli Sündmuse nimi ja sisestage üksikasjad töölehe Kulud ja töölehe Tulud tabelitesse."]
[null,"Kogukulud ja kogutulu arvutatakse automaatselt."]
[null,"Kasumi ja kahjumi kokkuvõtet ja diagrammi uuendatakse automaatselt töölehel Kasumi ja kahjumi kokkuvõte."]
[null,"Märkus. "]
[null,"Iga töölehe veerus A on toodud lisajuhised. See tekst on tahtlikult peidetud. Teksti eemaldamiseks valige veerg A ja seejärel käsk KUSTUTA. "]
[null,"Tabelite kohta lisateabe saamiseks vajutage tabelis tõstuklahvi (SHIFT) ja seejärel klahvi F10, valige suvand TABEL ja seejärel käsk ASETEKST."]

{"sheet":"Kulud","index":1,"n_rows":32,"n_cols":8,"rows_kept":32,"merged":[[2,1,3,1]]}
["Sisestage iga kategooria prognoositud ja tegelikud kulud selle töölehe vastavatesse tabelitesse ning sündmuse nimi lahtrisse D1, et kohandada selle ja muude töölehtede pealkirja. Lahtris H1 kuvatakse selle töölehe alapealkiri. Töölehe kasutamise kohta käivad kasulikud juhised leiate selle veeru lahtritest. Järgmine juhis on lahtris A3.","Sündmuse eelarve","Sündmuse nimi",{"$nulls":4},"KULUD"]
[]
["Kogukulude silt on parempoolses lahtris, prognoositud kulude silt lahtris G3 ja tegelike kulude silt lahtris H3.","KULUD KOKKU",{"$nulls":4},"Prognoos","Tegelik"]
["Prognoositud kogukulude silt on lahtris G4 ja automaatselt arvutatud tegelike kogukulude silt on lahtris H4. Järgmine juhis on lahtris A6.",{"$nulls":5},{"$f":"SUM(C11,C19,C25,C32,G11,G19,G24)","v":{"v":882,"d":"882.00 €"}},{"$f":"SUM(D11,D19,D25,D32,H11,H19,H24)","v":{"v":302,"d":"302.00 €"}}]
[]
["Sisestage tegevuskoha kulud parempoolsest lahtrist algavasse tabelisse ja jookide kulud lahtrist F6 algavasse tabelisse. Järgmised juhised on toodud lahtris A13.","Toimumiskoht","Prognoos","Tegelik",null,"Joogid ja suupisted","Prognoos","Tegelik"]
[null,"Ruumi rent",{"v":500,"d":"500.00 €"},null,null,"Söök"]
[null,"Palgatud personal",{"$nulls":3},"Joogid",{"v":20,"d":"20.00 €"}]
[null,"Varustus",{"$nulls":3},"Laudlinad",null,{"v":20,"d":"20.00 €"}]
[null,"Lauad ja toolid",{"$nulls":3},"Personal ja lisatasud"]
[null,"Kokku",{"$f":"SUBTOTAL(109,KohaKulud[Prognoos])","v":{"v":500,"d":"500.00 €"}},{"$f":"SUBTOTAL(103,KohaKulud[Tegelik])","v":{"v":0,"d":"0.00 €"}},null,"Kokku",{"$f":"SUBTOTAL(109,SuupisteteKulud[Prognoos])","v":{"v":20,"d":"20.00 €"}},{"$f":"SUBTOTAL(103,SuupisteteKulud[Tegelik])","v":{"v":1,"d":"1.00 €"}}]
[]
["Sisestage tabelisse kaunistustekulud, alustades parempoolsest lahtrist ja programmikulud, alustades lahtrist F13. Järgmised juhised on toodud lahtris A21.","Kaunistused","Prognoos","Tegelik",null,"Programm","Prognoos","Tegelik"]
[null,"Lilled",{"v":200,"d":"200.00 €"},{"v":300,"d":"300.00 €"},null,"Esinejad"]
[null,"Küünlad",{"$nulls":3},"Õhtujuht",{"v":30,"d":"30.00 €"}]
[null,"Valgustus",{"$nulls":3},"Reisimine"]
[null,"Õhupallid",{"$nulls":3},"Hotell"]
[null,"Ühekordseks kasutamiseks mõeldud tarvikud",{"$nulls":3},"Muu"]
[null,"Kokku",{"$f":"SUBTOTAL(109,KaunistusteKulud[Prognoos])","v":{"v":200,"d":"200.00 €"}},{"$f":"SUBTOTAL(109,KaunistusteKulud[Tegelik])","v":{"v":300,"d":"300.00 €"}},null,"Kokku",{"$f":"SUBTOTAL(109,VoldikuKulud[Prognoos])","v":{"v":30,"d":"30.00 €"}},{"$f":"SUBTOTAL(103,VoldikuKulud[Tegelik])","v":{"v":0,"d":"0.00 €"}}]
[]
["Sisestage ettevalmistuskulud parempoolsest lahtrist algavasse tabelisse ja hinnad lahtrist F21 algavasse tabelisse. Järgmised juhised on toodud lahtris A27.","Ettevalmistused","Prognoos","Tegelik",null,"Hinnad","Prognoos","Tegelik"]
[null,"Kutsete kujundamine",{"$nulls":3},"Lindid/plakatid"]
[null,"Pildistamisteenus / fotode ilmutamine",{"v":20,"d":"20.00 €"},null,null,"Kingitused",{"v":100,"d":"100.00 €"}]
[null,"Postikulu",{"$nulls":3},"Kokku",{"$f":"SUBTOTAL(109,Auhinnakulud[Prognoos])","v":{"v":100,"d":"100.00 €"}},{"$f":"SUBTOTAL(103,Auhinnakulud[Tegelik])","v":{"v":0,"d":"0.00 €"}}]
[null,"Kokku",{"$f":"SUBTOTAL(109,Reklaamikulud[Prognoos])","v":{"v":20,"d":"20.00 €"}},{"$f":"SUBTOTAL(103,Reklaamikulud[Tegelik])","v":{"v":0,"d":"0.00 €"}}]
[]
["Sisestage muud kulud parempoolsest lahtrist algavasse tabelisse.","Muud kulud","Prognoos","Tegelik"]
[null,"Telefon",null,{"v":13,"d":"13.00 €"}]
[null,"Transport",{"v":12,"d":"12.00 €"}]
[null,"Kirjatarbed"]
[null,"Faksiteenused"]
[null,"Kokku",{"$f":"SUBTOTAL(109,MuudKulud[Prognoos])","v":{"v":12,"d":"12.00 €"}},{"$f":"SUBTOTAL(103,MuudKulud[Tegelik])","v":{"v":1,"d":"1.00 €"}}]

{"sheet":"Sissetulekud","index":2,"n_rows":29,"n_cols":7,"rows_kept":29,"merged":[[0,1,0,2],[2,1,3,1]]}
["Sisestage selle töölehe vastavatesse tabelitesse eri kategooriate lõikes prognoositav ja tegelik tulu. Paremal asuvas lahtris olevat töölehe pealkirja värskendatakse automaatselt. Lahtris G1 on alapealkiri. Töölehe kasutamise kohta käivad kasulikud juhised leiate selle veeru lahtritest. Järgmine juhis on lahtris A3.",{"$f":"Kulud!B1","v":"Sündmuse eelarve"},null,{"$f":"Kulud!C1","v":"Sündmuse nimi"},null,null,"SISSETULEKUD"]
[]
["Kogutulu silt on parempoolses lahtris, prognoositud tulude silt lahtris F3 ja tegelike tulude silt lahtris G3.","Sissetulekud kokku",{"$nulls":3},"Prognoos","Tegelik"]
["Automaatselt arvutatud prognoositud kogutulu silt on lahtris F4 ja tegeliku kogutulu silt on lahtris G4.",{"$nulls":4},{"$f":"SUM(Piletid[[#Totals],[Prognoositud tulu]],ReklaamidVoldikus[[#Totals],[Prognoositud tulu]],EksponendidJaTarnijad[[#Totals],[Prognoositud tulu]],KaupadeMüük[[#Totals],[Prognoositud tulu]])","v":{"v":1936,"d":"1,936.00 €"}},{"$f":"SUM(Piletid[[#Totals],[Tegelik tulu]],ReklaamidVoldikus[[#Totals],[Tegelik tulu]],EksponendidJaTarnijad[[#Totals],[Tegelik tulu]],KaupadeMüük[[#Totals],[Tegelik tulu]])","v":{"v":1831,"d":"1,831.00 €"}}]
["Paremal asuvas lahtris kuvatakse osavõtu silt.","OSAVÕTT"]
["Sisestage tabelisse prognoositud ja tegelik külastajate arv koos piletihindadega, alustades parempoosest lahtrist. Osavõtult saadud prognoositud ja tegelik tulu arvutatakse automaatselt. Järgmine juhis on lahtris A11.","Hinnanguline arv","TEGELIK ARV","Tüüp","Hind","Prognoositud tulu","Tegelik tulu"]
[null,300,278,"Täiskasvanud @",{"v":5,"d":"5.00 €"},{"$f":"B7*E7","v":{"v":1500,"d":"1,500.00 €"}},{"$f":"C7*E7","v":{"v":1390,"d":"1,390.00 €"}}]
[null,197,195,"Lapsed @",{"v":2,"d":"2.00 €"},{"$f":"B8*E8","v":{"v":394,"d":"394.00 €"}},{"$f":"C8*E8","v":{"v":390,"d":"390.00 €"}}]
[null,42,51,"Muu @",{"v":1,"d":"1.00 €"},{"$f":"B9*E9","v":{"v":42,"d":"42.00 €"}},{"$f":"C9*E9","v":{"v":51,"d":"51.00 €"}}]
[null,"Kokku",{"$nulls":3},{"$f":"SUBTOTAL(109,Piletid[Prognoositud tulu])","v":{"v":1936,"d":"1,936.00 €"}},{"$f":"SUBTOTAL(109,Piletid[Tegelik tulu])","v":{"v":1831,"d":"1,831.00 €"}}]
["Paremal asuvas lahtris kuvatakse programmi reklaami silt.","PROGRAMMI REKLAAMID"]
["Sisestage tabelisse prognoositud ja tegelik reklaamide arv koos hindadega, alustades parempoosest lahtrist. Prognoositud ja tegelik reklaamitulu arvutatakse automaatselt. Järgmine juhis on lahtris A17.","Hinnanguline arv","TEGELIK ARV","Tüüp","Hind","Prognoositud tulu","Tegelik tulu"]
[null,12,null,"Plank @",null,{"$f":"B13*E13","v":{"v":0,"d":"0.00 €"}},{"$f":"C13*E13","v":{"v":0,"d":"0.00 €"}}]
[null,null,158,"Pool lehekülge @",null,{"$f":"B14*E14","v":{"v":0,"d":"0.00 €"}},{"$f":"C14*E14","v":{"v":0,"d":"0.00 €"}}]
[null,4,null,"Veerand lehekülge @",null,{"$f":"B15*E15","v":{"v":0,"d":"0.00 €"}},{"$f":"C15*E15","v":{"v":0,"d":"0.00 €"}}]
[null,"Kokku",{"$nulls":3},{"$f":"SUBTOTAL(109,ReklaamidVoldikus[Prognoositud tulu])","v":{"v":0,"d":"0.00 €"}},{"$f":"SUBTOTAL(109,ReklaamidVoldikus[Tegelik tulu])","v":{"v":0,"d":"0.00 €"}}]
["Paremal asuvas lahtris kuvatakse silt Eksponendid või müüjad.","EKSPONENDID/MÜÜJAD"]
["Sisestage tabelisse prognoositud ja tegelik eksponentide arv koos näituseboksi hindadega, alustades parempoosest lahtrist. Prognoositud ja tegelik tulu arvutatakse automaatselt. Järgmine juhis on lahtris A23.","Hinnanguline arv","TEGELIK ARV","Tüüp","Hind","Prognoositud tulu","Tegelik tulu"]
[null,23,null,"Suured näituseboksid @",null,{"$f":"B19*E19","v":{"v":0,"d":"0.00 €"}},{"$f":"C19*E19","v":{"v":0,"d":"0.00 €"}}]
[null,354,null,"Keskmised näituseboksid @",null,{"$f":"B20*E20","v":{"v":0,"d":"0.00 €"}},{"$f":"C20*E20","v":{"v":0,"d":"0.00 €"}}]
[null,56,null,"Väikesed näituseboksid @",null,{"$f":"B21*E21","v":{"v":0,"d":"0.00 €"}},{"$f":"C21*E21","v":{"v":0,"d":"0.00 €"}}]
[null,"Kokku",{"$nulls":3},{"$f":"SUBTOTAL(109,EksponendidJaTarnijad[Prognoositud tulu])","v":{"v":0,"d":"0.00 €"}},{"$f":"SUBTOTAL(109,EksponendidJaTarnijad[Tegelik tulu])","v":{"v":0,"d":"0.00 €"}}]
["Paremal asuvas lahtris kuvatakse silt Kaupade müük.","KAUPADE MÜÜK"]
["Sisestage tabelisse prognoositud ja tegelik müüdud kaupade arv koos hindadega, alustades parempoosest lahtrist. Prognoositud ja tegelik tulu arvutatakse automaatselt.","Hinnanguline arv","TEGELIK ARV","Tüüp","Hind","Prognoositud tulu","Tegelik tulu"]
[{"$nulls":3},"Tooted @",null,{"$f":"B25*E25","v":{"v":0,"d":"0.00 €"}},{"$f":"C25*E25","v":{"v":0,"d":"0.00 €"}}]
[null,123,null,"Tooted @",null,{"$f":"B26*E26","v":{"v":0,"d":"0.00 €"}},{"$f":"C26*E26","v":{"v":0,"d":"0.00 €"}}]
[{"$nulls":3},"Tooted @",null,{"$f":"B27*E27","v":{"v":0,"d":"0.00 €"}},{"$f":"C27*E27","v":{"v":0,"d":"0.00 €"}}]
[null,13,null,"Tooted @",null,{"$f":"B28*E28","v":{"v":0,"d":"0.00 €"}},{"$f":"C28*E28","v":{"v":0,"d":"0.00 €"}}]
[null,"Kokku",{"$nulls":3},{"$f":"SUBTOTAL(109,KaupadeMüük[Prognoositud tulu])","v":{"v":0,"d":"0.00 €"}},{"$f":"SUBTOTAL(109,KaupadeMüük[Tegelik tulu])","v":{"v":0,"d":"0.00 €"}}]

{"sheet":"Kasumiaruande kokkuvõte","index":3,"n_rows":8,"n_cols":7,"rows_kept":8,"merged":[[0,1,0,2]]}
["Kasumi ja kahjumi kokkuvõtet ning kogutulu ja kogukulude diagrammi uuendatakse automaatselt sellel töölehel. Paremal asuvas lahtris olevat töölehe pealkirja värskendatakse automaatselt. Lahtris G1 ja G2 on alapealkirjad. Töölehe kasutamise kohta käivad kasulikud juhised leiate selle veeru lahtritest. Järgmine juhis on lahtris A3.",{"$f":"Kulud!B1","v":"Sündmuse eelarve"},null,{"$f":"Kulud!C1","v":"Sündmuse nimi"},null,null,"KASUM "]
[{"$nulls":6},"Kahjumiaruande kokkuvõte"]
["Lintdiagramm, mis kujutab prognoositud tulu ja kulu ning tegelike sissetulekute ja väljaminekute võrdlust, asub lahtris E3.",{"$nulls":3},"Lintdiagramm, mis kujutab prognoositud ja tegelike sissetulekute ja väljaminekute võrdlust, on selles lahtris."]
["Paremal asuvast lahtrist algavat kokkuvõtte tabelit värskendatakse automaatselt. Järgmised juhised on toodud lahtris A8."," Kokku","Prognoos","Tegelik"]
[null,"Kogutulu",{"$f":"Sissetulekud!F10","v":{"v":1936,"d":"1,936.00 €"}},{"$f":"Sissetulekud!F4","v":{"v":1936,"d":"1,936.00 €"}}]
[null,"Kogukulu",{"$f":"Kulud!G4","v":{"v":882,"d":"882.00 €"}},{"$f":"Kulud!H4","v":{"v":302,"d":"302.00 €"}}]
[]
["Prognoositud kogukasu või -kahjum arvutatakse automaatselt lahtris C8 ja tegelik kogukasum või -kahjum lahtris D8.","Kogukasum\n(või -kahjum)",{"$f":"C5-C6","v":{"v":1054,"d":"1,054.00 €"}},{"$f":"D5-D6","v":{"v":1634,"d":"1,634.00 €"}}]